fUSD/lending_fUSD_20260401
["ID","MTS","AMOUNT","RATE_DAILY","PERIOD"]
[419202812,1775017882306,-421.938934,0.00030781,7]
[419202813,1775017882315,-234.891227,0.00030781,7]
[419202814,1775017882325,-234.891227,0.00030781,7]
[419202815,1775017882334,-234.891227,0.00030781,7]
[419202816,1775017882345,-234.891227,0.00030781,7]
[419202817,1775017882354,-151.0,0.00030781,7]
[419202818,1775017882363,-151.0,0.00030781,7]
[419202819,1775017882372,-190.117916,0.00030781,7]
[419202820,1775017882382,-151.0,0.00030781,7]
[419202821,1775017882391,-190.117916,0.00030781,7]
[419202822,1775017882399,-190.117916,0.00030781,7]
[419202823,1775017882409,-190.117916,0.00030781,7]
[419202824,1775017882419,-151.0,0.00030781,7]
[419202825,1775017882428,-156.05878,0.00030781,7]
[419202826,1775017882438,-483.089048,0.00030781,7]
[419202827,1775017882447,-483.089048,0.00030781,7]
[419202828,1775017882456,-483.089048,0.00030781,7]
[419202829,1775017882465,-249.645465,0.00030781,7]
[419202830,1775017882474,-263.046408,0.00030781,7]
[419202831,1775017882483,-418.465845,0.00030781,7]
[419202832,1775017882492,-483.089048,0.00030781,7]
[419202833,1775017882501,-263.046408,0.00030781,7]
[419202834,1775017882510,-249.645465,0.00030781,7]
[419202835,1775017882519,-418.465845,0.00030781,7]
[419202836,1775017882528,-263.046408,0.00030781,7]
[419202837,1775017882537,-151.0,0.00030781,7]
[419202838,1775017882546,-249.645465,0.00030781,7]
[419202839,1775017882555,-418.465845,0.00030781,7]
[419202840,1775017882563,-172.663958,0.00030781,7]
[419202841,1775017882572,-151.0,0.00030781,7]
[419202842,1775017882581,-249.645465,0.00030781,7]
[419202843,1775017882591,-263.046408,0.00030781,7]
[419202844,1775017882600,-418.465845,0.00030781,7]
[419202845,1775017882609,-151.0,0.00030781,7]
[419202846,1775017882618,-151.0,0.00030781,7]
[419202847,1775017882627,-172.663958,0.00030781,7]
[419202848,1775017882636,-151.0,0.00030781,7]
[419202849,1775017882645,-151.0,0.00030781,7]
[419202850,1775017882654,-521.20969,0.00030781,7]
[419202851,1775017882663,-597.497225,0.00030781,7]
[419202852,1775017882672,-172.663958,0.00030781,7]
[419202853,1775017882681,-151.0,0.00030781,7]
[419202854,1775017882690,-521.20969,0.00030781,7]
[419202855,1775017882700,-597.497225,0.00030781,7]
[419202856,1775017882708,-172.663958,0.00030781,7]
[419202857,1775017882717,-151.0,0.00030781,7]
[419202858,1775017882727,-151.0,0.00030781,7]
[419202859,1775017882736,-521.20969,0.00030781,7]
[419202860,1775017882746,-597.497225,0.00030781,7]
[419202861,1775017882755,-151.0,0.00030781,7]
[419202862,1775017882763,-521.20969,0.00030781,7]
[419202863,1775017882772,-597.497225,0.00030781,7]
[419202864,1775017882781,-151.0,0.00030781,7]
[419202865,1775017882792,-151.0,0.00030781,7]
[419202866,1775017882801,-182.688209,0.00030781,7]
[419202867,1775017882810,-152.910508,0.00030781,7]
[419202868,1775017882819,-865.724085,0.00030781,7]
[419202869,1775017882828,-182.688209,0.00030781,7]
[419202870,1775017882836,-152.910508,0.00030781,7]
[419202871,1775017882846,-865.724085,0.00030781,7]
[419202872,1775017882855,-158.73648,0.00030781,7]
[419202873,1775017882864,-182.688209,0.00030781,7]
[419202874,1775017882873,-152.910508,0.00030781,7]
[419202875,1775017882882,-865.724085,0.00030781,7]
[419202876,1775017882891,-182.688209,0.00030781,7]
[419202877,1775017882900,-865.724085,0.00030781,7]
[419202878,1775017882909,-152.910508,0.00030781,7]
[419202879,1775017882918,-151.279828,0.00030781,7]
[419202880,1775017882927,-151.279828,0.00030781,7]
[419202881,1775017882937,-151.279828,0.00030781,7]
[419202882,1775017882946,-151.279828,0.00030781,7]
[419202883,1775017882955,-151.0,0.00030781,7]
[419202884,1775017882964,-255.663514,0.00030781,7]
[419202885,1775017882973,-255.663514,0.00030781,7]
[419202886,1775017882982,-255.663514,0.00030781,7]
[419202887,1775017882992,-178.585789,0.00030781,7]
[419202888,1775017883000,-255.663514,0.00030781,7]
[419202889,1775017883010,-178.585789,0.00030781,7]
[419202890,1775017883019,-178.585789,0.00030781,7]
[419202891,1775017883028,-178.585789,0.00030781,7]
[419202892,1775017883037,-245.956086,0.00030781,7]
[419202893,1775017883046,-245.956086,0.00030781,7]
[419202894,1775017883055,-245.956086,0.00030781,7]
[419202895,1775017883064,-245.956086,0.00030781,7]
[419202896,1775017883073,-283.391457,0.00030781,7]
[419202897,1775017883082,-283.391457,0.00030781,7]
[419202898,1775017883092,-283.391457,0.00030781,7]
[419202899,1775017883101,-283.391457,0.00030781,7]
[419202900,1775017883110,-805.6,0.00030796,2]
[419202901,1775017883120,-242.15909246,0.00030797,2]
[419202902,1775017883130,-2000.0,0.000308,2]
[419202903,1775017883139,-1400.0,0.0003081,2]
[419202904,1775017883149,-1400.0,0.0003081,2]
[419202905,1775017883158,-1388.0,0.0003081,2]
[419202906,1775017883167,-2959.597666,0.00030811,7]
[419202907,1775017883176,-175.599481,0.00030811,7]
[419202908,1775017883186,-2959.597666,0.00030811,7]
[419202909,1775017883195,-166.099322,0.00030811,7]
[419202910,1775017883204,-175.599481,0.00030811,7]
[419202911,1775017883213,-2959.597666,0.00030811,7]
[419202912,1775017883223,-166.099322,0.00030811,7]
[419202913,1775017883233,-175.599481,0.00030811,7]
[419202914,1775017883243,-2959.59767,0.00030811,7]
[419202915,1775017883254,-166.099322,0.00030811,7]
[419202916,1775017883263,-1163.182786,0.00030811,7]
[419202917,1775017883273,-2296.649879,0.00030811,7]
[419202918,1775017883283,-175.599477,0.00030811,7]
[419202919,1775017883293,-170.636045,0.00030811,7]
[419202920,1775017883303,-166.099316,0.00030811,7]
[419202921,1775017883313,-1163.182786,0.00030811,7]
[419202922,1775017883322,-2296.649879,0.00030811,7]
[419202923,1775017883332,-170.636045,0.00030811,7]
[419202924,1775017883343,-1163.182786,0.00030811,7]
[419202925,1775017883352,-2296.649879,0.00030811,7]
[419202926,1775017883362,-170.636045,0.00030811,7]
[419202927,1775017883373,-1163.182792,0.00030811,7]
[419202928,1775017883382,-2296.649888,0.00030811,7]
[419202929,1775017883392,-170.636039,0.00030811,7]
[419202930,1775017883402,-175.691598,0.00030811,7]
[419202931,1775017883413,-175.691598,0.00030811,7]
[419202932,1775017883424,-560.669219,0.00030811,7]
[419202933,1775017883436,-206.472759,0.00030811,7]
[419202934,1775017883445,-175.691598,0.00030811,7]
[419202935,1775017883454,-560.669219,0.00030811,7]
[419202936,1775017883465,-557.258778,0.00030811,7]
[419202937,1775017883475,-206.472759,0.00030811,7]
[419202938,1775017883484,-175.691602,0.00030811,7]
[419202939,1775017883493,-560.669219,0.00030811,7]
[419202940,1775017883503,-178.645392,0.00030811,7]
[419202941,1775017883513,-557.258778,0.00030811,7]
[419202942,1775017883523,-206.472759,0.00030811,7]
[419202943,1775017883533,-560.669216,0.00030811,7]
[419202944,1775017883545,-178.645392,0.00030811,7]
[419202945,1775017883555,-557.258778,0.00030811,7]
[419202946,1775017883565,-206.47275,0.00030811,7]
[419202947,1775017883575,-178.645392,0.00030811,7]
[419202948,1775017883586,-557.258776,0.00030811,7]
[419202949,1775017883596,-178.645398,0.00030811,7]
[419202950,1775017883607,-151.0,0.00030811,7]
[419202951,1775017883617,-151.0,0.00030811,7]
[419202952,1775017883626,-151.0,0.00030811,7]
[419202953,1775017883636,-272.369738,0.00030811,7]
[419202954,1775017883645,-2349.593397,0.00030811,7]
[419202955,1775017883655,-272.369738,0.00030811,7]
[419202956,1775017883664,-151.0,0.00030811,7]
[419202957,1775017883674,-2349.593397,0.00030811,7]
[419202958,1775017883683,-402.472625,0.00030811,7]
[419202959,1775017883784,-272.369738,0.00030811,7]
[419202960,1775017883793,-151.0,0.00030811,7]
[419202961,1775017883803,-2349.593397,0.00030811,7]
[419202962,1775017883812,-402.472625,0.00030811,7]
[419202963,1775017883821,-272.369748,0.00030811,7]
[419202964,1775017883830,-2349.593403,0.00030811,7]
[419202965,1775017883839,-402.472625,0.00030811,7]
[419202966,1775017883849,-402.472633,0.00030811,7]
[419202967,1775017883858,-776.330977,0.00030811,7]
[419202968,1775017883867,-1030.82704,0.00030811,7]
[419202969,1775017883877,-776.330977,0.00030811,7]
[419202970,1775017883886,-268.345093,0.00030811,7]
[419202971,1775017883895,-1030.82704,0.00030811,7]
[419202972,1775017883904,-1471.650873,0.00030811,7]
[419202973,1775017883913,-268.345093,0.00030811,7]
[419202974,1775017883922,-776.330977,0.00030811,7]
[419202975,1775017883931,-2803.308424,0.00030811,7]
[419202976,1775017883940,-1030.82704,0.00030811,7]
[419202977,1775017883948,-454.900784,0.00030811,7]
[419202978,1775017883958,-1471.650873,0.00030811,7]
[419202979,1775017883967,-268.345093,0.00030811,7]
[419202980,1775017883976,-776.330984,0.00030811,7]
[419202981,1775017883990,-2803.308424,0.00030811,7]
[419202982,1775017883999,-151.0,0.00030811,7]
[419202983,1775017884010,-1030.827035,0.00030811,7]
[419202984,1775017884021,-454.900784,0.00030811,7]
[419202985,1775017884031,-1471.650873,0.00030811,7]
[419202986,1775017884041,-268.345086,0.00030811,7]
[419202987,1775017884052,-2803.308424,0.00030811,7]
[419202988,1775017884062,-454.900784,0.00030811,7]
[419202989,1775017884074,-1471.650871,0.00030811,7]
[419202990,1775017884085,-2803.308426,0.00030811,7]
[419202991,1775017884094,-454.900787,0.00030811,7]
[419202992,1775017884104,-243.309366,0.00030811,7]
[419202993,1775017884114,-243.309366,0.00030811,7]
[419202994,1775017884124,-243.309366,0.00030811,7]
[419202995,1775017884136,-243.309367,0.00030811,7]
[419202996,1775017884146,-151.0,0.00030811,7]
[419202997,1775017884155,-151.0,0.00030811,7]
[419202998,1775017884165,-151.0,0.00030811,7]
[419202999,1775017884176,-153.94,0.00030884,7]
[419203000,1775017884185,-197.89,0.00030884,7]
[419203001,1775017884196,-1014.36,0.00030937,30]
[419203002,1775017884207,-6514.8126,0.00031,77]
[419203003,1775017884217,-160.0,0.00031,7]
[419203004,1775017884227,-160.0,0.00031,120]
[419203005,1775017884236,-500.0,0.0003106,30]
[419203006,1775017884246,-1400.0,0.0003115,2]
[419203007,1775017884255,-1400.0,0.0003115,2]
[419203008,1775017884265,-1389.0,0.0003115,2]
[419203009,1775017884274,-1045.0,0.00031221,2]
[419203010,1775017884284,-621.0,0.00031221,2]
[419203011,1775017884293,-1014.36,0.0003125,30]
[419203012,1775017884303,-1000.0,0.00031319,120]
[419203013,1775017884313,-1000.0,0.00031319,120]
[419203014,1775017884323,-1000.0,0.00031319,120]
[419203015,1775017884333,-1000.0,0.00031319,120]
[419203016,1775017884343,-1000.0,0.00031319,120]
[419203017,1775017884353,-1000.0,0.00031319,120]
[419203018,1775017884363,-1000.0,0.00031319,120]
[419203019,1775017884373,-1000.0,0.00031319,120]
[419203020,1775017884383,-1000.0,0.00031319,120]
[419203021,1775017884392,-292.95454234,0.00031345,2]
[419203022,1775017884402,-150.0,0.00031371,7]
[419203023,1775017884413,-171.108772,0.00031395,7]
[419203024,1775017884423,-171.108772,0.00031395,7]
[419203025,1775017884432,-151.0,0.00031395,7]
[419203026,1775017884442,-171.108772,0.00031395,7]
[419203027,1775017884451,-151.0,0.00031395,7]
[419203028,1775017884460,-171.108772,0.00031395,7]
[419203029,1775017884470,-151.0,0.00031395,7]
[419203030,1775017884479,-151.0,0.00031395,7]
[419203031,1775017884491,-372.802333,0.00031395,7]
[419203032,1775017884504,-316.209546,0.00031395,7]
[419203033,1775017884514,-372.802333,0.00031395,7]
[419203034,1775017884525,-316.209546,0.00031395,7]
[419203035,1775017884536,-372.802333,0.00031395,7]
[419203036,1775017884545,-316.209546,0.00031395,7]
[419203037,1775017884555,-151.0,0.00031395,7]
[419203038,1775017884565,-372.802333,0.00031395,7]
[419203039,1775017884574,-316.209546,0.00031395,7]
[419203040,1775017884583,-151.0,0.00031395,7]
[419203041,1775017884592,-2106.990483,0.00031395,7]
[419203042,1775017884602,-700.068793,0.00031395,7]
[419203043,1775017884612,-1068.797159,0.00031395,7]
[419203044,1775017884625,-151.0,0.00031395,7]
[419203045,1775017884636,-151.0,0.00031395,7]
[419203046,1775017884645,-700.068793,0.00031395,7]
[419203047,1775017884656,-700.068793,0.00031395,7]
[419203048,1775017884665,-2106.990483,0.00031395,7]
[419203049,1775017884674,-151.0,0.00031395,7]
[419203050,1775017884683,-700.068793,0.00031395,7]
[419203051,1775017884692,-2106.990483,0.00031395,7]
[419203052,1775017884701,-2106.990483,0.00031395,7]
[419203053,1775017884712,-1068.797159,0.00031395,7]
[419203054,1775017884722,-1068.797159,0.00031395,7]
[419203055,1775017884731,-1068.797159,0.00031395,7]
[419203056,1775017884744,-151.0,0.00031395,7]
[419203057,1775017884753,-151.0,0.00031395,7]
[419203058,1775017884763,-151.0,0.00031395,7]
[419203059,1775017884774,-2809.0,0.000314,3]
[419203060,1775017884783,-2809.0,0.000314,3]
[419203061,1775017884792,-2809.0,0.000314,3]
[419203062,1775017884801,-153.94,0.00031453,7]
[419203063,1775017884810,-197.89,0.00031453,7]
[419203064,1775017884819,-150.0,0.0003147,2]
[419203065,1775017884828,-1400.0,0.000315,2]
[419203066,1775017884838,-1400.0,0.000315,2]
[419203067,1775017884847,-1390.0,0.000315,2]
[419203068,1775017884857,-1014.36,0.00031563,30]
[419203069,1775017884867,-504.0,0.00031691,18]
[419203070,1775017884876,-162.0,0.0003171,3]
[419203071,1775017884886,-162.0,0.0003172,3]
[419203072,1775017884895,-580.0,0.0003172,3]
[419203073,1775017884905,-2809.0,0.0003172,3]
[419203074,1775017884914,-250.0,0.00031784,2]
[419203075,1775017884924,-250.0,0.00031784,2]
[419203076,1775017884933,-242.0,0.00031784,2]
[419203077,1775017884942,-152.0,0.00031833,6]
[419203078,1775017884952,-1115.0,0.00031855,5]
[419203079,1775017884961,-1014.36,0.00031875,30]
[419203080,1775017884970,-2809.0,0.00031974,3]
[419203081,1775017884979,-167.98282313,0.00032,120]
[419203082,1775017884988,-192.59859554,0.00032,120]
[419203083,1775017884997,-1530.51664845,0.00032,120]
[419203084,1775017885007,-167.63309835,0.00032,120]
[419203085,1775017885017,-199.91744556,0.00032,120]
[419203086,1775017885027,-169.62268548,0.00032,120]
[419203087,1775017885037,-184.63982661,0.00032,120]
[419203088,1775017885046,-160.0,0.00032,120]
[419203089,1775017885056,-223.9430648,0.00032,120]
[419203090,1775017885064,-179.7765907,0.00032,120]
[419203091,1775017885074,-153.94,0.00032021,7]
[419203092,1775017885084,-197.89,0.00032021,7]
[419203093,1775017885094,-1571.0,0.00032039,3]
[419203094,1775017885103,-500.0,0.00032129,120]
[419203095,1775017885113,-500.0,0.00032129,120]
[419203096,1775017885122,-500.0,0.00032129,120]
[419203097,1775017885132,-400.83007383,0.00032129,120]
[419203098,1775017885141,-500.0,0.0003213,21]
[419203099,1775017885152,-500.0,0.0003213,21]
[419203100,1775017885162,-500.0,0.0003213,21]
[419203101,1775017885172,-500.0,0.0003213,21]
[419203102,1775017885190,-500.0,0.0003213,21]
[419203103,1775017885204,-500.0,0.0003213,21]
[419203104,1775017885216,-500.0,0.0003213,21]
[419203105,1775017885226,-500.0,0.0003213,21]
[419203106,1775017885236,-500.0,0.0003213,21]
[419203107,1775017885245,-500.0,0.0003213,21]
[419203108,1775017885255,-500.0,0.0003213,21]
[419203109,1775017885264,-500.0,0.0003213,21]
[419203110,1775017885275,-396.68097798,0.0003213,21]
[419203111,1775017885284,-1014.36,0.00032187,120]
[419203112,1775017885294,-952.57,0.00032208,2]
[419203113,1775017885304,-825.0,0.0003221,60]
[419203114,1775017885314,-363.51560483,0.00032222,30]
[419203115,1775017885325,-363.51560483,0.00032222,30]
[419203116,1775017885334,-500.0,0.00032291,120]
[419203117,1775017885343,-374.99530866,0.00032329,7]
[419203118,1775017885354,-2815.0,0.00032359,11]
[419203119,1775017885364,-160.0,0.0003236,11]
[419203120,1775017885374,-150.0,0.000324,7]
[419203121,1775017885385,-8377.0153,0.000324,82]
[419203122,1775017885395,-1014.36,0.000325,120]
[419203123,1775017885405,-153.94,0.00032589,7]
[419203124,1775017885416,-197.89,0.00032589,7]
[419203125,1775017885426,-299.04270038,0.000327,2]
[419203126,1775017885435,-299.04270032,0.000327,2]
[419203127,1775017885445,-299.04270032,0.000327,2]
[419203128,1775017885454,-299.04270032,0.000327,2]
[419203129,1775017885464,-299.04270032,0.000327,2]
[419203130,1775017885476,-299.04270032,0.000327,2]
[419203131,1775017885487,-299.04270032,0.000327,2]
[419203132,1775017885497,-299.04270032,0.000327,2]
[419203133,1775017885509,-299.04270032,0.000327,2]
[419203134,1775017885520,-299.04270032,0.000327,2]
[419203135,1775017885532,-299.04270032,0.000327,2]
[419203136,1775017885541,-299.04270032,0.000327,2]
[419203137,1775017885551,-299.04270032,0.000327,2]
[419203138,1775017885561,-299.04270032,0.000327,2]
[419203139,1775017885571,-299.04270032,0.000327,2]
[419203140,1775017885580,-299.04270032,0.000327,2]
[419203141,1775017885589,-299.04270032,0.000327,2]
[419203142,1775017885600,-299.04270032,0.000327,2]
[419203143,1775017885610,-299.04270032,0.000327,2]
[419203144,1775017885621,-299.04270032,0.000327,2]
[419203145,1775017885632,-199.62462886,0.00032713,120]
[419203146,1775017885641,-829.96897858,0.00032713,120]
[419203147,1775017885652,-1014.36,0.00032812,120]
[419203148,1775017885662,-805.6,0.00032847,2]
[419203149,1775017885672,-300.0,0.00032876,120]
[419203150,1775017885681,-300.0,0.00032876,120]
[419203151,1775017885690,-209.51487984,0.00032876,120]
[419203152,1775017885699,-361.25539067,0.00032876,2]
[419203153,1775017885709,-385.49196168,0.00032876,2]
[419203154,1775017885719,-500.0,0.00032876,2]
[419203155,1775017885730,-455.39169136,0.00032876,2]
[419203156,1775017885739,-563.38467693,0.00032876,2]
[419203157,1775017885750,-500.0,0.00032876,2]
[419203158,1775017885760,-500.0,0.00032876,2]
[419203159,1775017885769,-452.56400721,0.00032876,2]
[419203160,1775017885779,-442.08410442,0.00032876,2]
[419203161,1775017885789,-500.0,0.00032876,2]
[419203162,1775017885799,-500.0,0.00032876,2]
[419203163,1775017885809,-500.0,0.00032876,2]
[419203164,1775017885820,-551.54125544,0.00032876,2]
[419203165,1775017885831,-438.96647187,0.00032876,2]
[419203166,1775017885841,-500.0,0.00032876,2]
[419203167,1775017885852,-500.0,0.00032876,2]
[419203168,1775017885862,-500.0,0.00032876,2]
[419203169,1775017885873,-500.0,0.00032876,2]
[419203170,1775017885883,-500.0,0.00032876,2]
[419203171,1775017885893,-278.53098224,0.00032876,2]
[419203172,1775017885905,-434.91610991,0.00032876,2]
[419203173,1775017885915,-500.0,0.00032876,2]
[419203174,1775017885924,-370.32438852,0.00032876,2]
[419203175,1775017885935,-500.0,0.00032876,2]
[419203176,1775017885945,-157.88,0.00032877,2]
[419203177,1775017885955,-196.226046,0.00032877,7]
[419203178,1775017885966,-196.226046,0.00032877,7]
[419203179,1775017885976,-196.226046,0.00032877,7]
[419203180,1775017885988,-196.226046,0.00032877,7]
[419203181,1775017885999,-196.226046,0.00032877,7]
[419203182,1775017886010,-196.226046,0.00032877,7]
[419203183,1775017886026,-196.226046,0.00032877,7]
[419203184,1775017886036,-196.226046,0.00032877,7]
[419203185,1775017886047,-196.226046,0.00032877,7]
[419203186,1775017886056,-196.226046,0.00032877,7]
[419203187,1775017886067,-196.226046,0.00032877,7]
[419203188,1775017886077,-196.226046,0.00032877,7]
[419203189,1775017886086,-196.226046,0.00032877,7]
[419203190,1775017886096,-196.226046,0.00032877,7]
[419203191,1775017886106,-196.226046,0.00032877,7]
[419203192,1775017886119,-196.226046,0.00032877,7]
[419203193,1775017886128,-866.0,0.00032877,15]
[419203194,1775017886138,-4589.596736,0.00032877,7]
[419203195,1775017886147,-4589.596736,0.00032877,7]
[419203196,1775017886157,-4589.596736,0.00032877,7]
[419203197,1775017886167,-4589.596736,0.00032877,7]
[419203198,1775017886176,-4589.596736,0.00032877,7]
[419203199,1775017886186,-4589.596736,0.00032877,7]
[419203200,1775017886195,-4589.596736,0.00032877,7]
[419203201,1775017886204,-4589.596736,0.00032877,7]
[419203202,1775017886214,-4589.596736,0.00032877,7]
[419203203,1775017886224,-4589.596736,0.00032877,7]
[419203204,1775017886233,-4589.596736,0.00032877,7]
[419203205,1775017886243,-4589.596736,0.00032877,7]
[419203206,1775017886252,-4589.596736,0.00032877,7]
[419203207,1775017886262,-4589.596736,0.00032877,7]
[419203208,1775017886271,-4589.596736,0.00032877,7]
[419203209,1775017886281,-4589.596736,0.00032877,7]
[419203210,1775017886290,-511.966398,0.00032877,7]
[419203211,1775017886299,-511.966398,0.00032877,7]
[419203212,1775017886309,-511.966398,0.00032877,7]
[419203213,1775017886318,-511.966398,0.00032877,7]
[419203214,1775017886328,-511.966398,0.00032877,7]
[419203215,1775017886337,-511.966398,0.00032877,7]
[419203216,1775017886347,-511.966398,0.00032877,7]
[419203217,1775017886357,-511.966398,0.00032877,7]
[419203218,1775017886367,-511.966398,0.00032877,7]
[419203219,1775017886377,-511.966398,0.00032877,7]
[419203220,1775017886386,-511.966398,0.00032877,7]
[419203221,1775017886395,-511.966398,0.00032877,7]
[419203222,1775017886405,-511.966398,0.00032877,7]
[419203223,1775017886414,-511.966398,0.00032877,7]
[419203224,1775017886423,-511.966398,0.00032877,7]
[419203225,1775017886433,-511.966398,0.00032877,7]
[419203226,1775017886442,-500.0,0.00032877,120]
[419203227,1775017886452,-602.94613396,0.00032899,30]
[419203228,1775017886461,-500.0,0.00032899,10]
[419203229,1775017886470,-500.0,0.00032899,45]
[419203230,1775017886480,-560.22,0.00032899,120]
[419203231,1775017886490,-27980.39,0.000329,2]
[419203232,1775017886499,-9127.68,0.000329,30]
[419203233,1775017886509,-7730.48,0.000329,30]
[419203234,1775017886518,-7126.81,0.000329,30]
[419203235,1775017886527,-152.0,0.00032902,7]
[419203236,1775017886537,-2809.0,0.00032908,11]
[419203237,1775017886546,-150.0,0.00032914,7]
[419203238,1775017886556,-504.0,0.0003293,19]
[419203239,1775017886565,-1000.0,0.0003297,2]
[419203240,1775017886574,-1000.0,0.0003297,2]
[419203241,1775017886584,-500.0,0.0003297,2]
[419203242,1775017886593,-1000.0,0.0003297,2]
[419203243,1775017886602,-500.0,0.0003297,2]
[419203244,1775017886612,-1188.51483974,0.0003297,2]
[419203245,1775017886621,-500.0,0.0003297,2]
[419203246,1775017886631,-762.87386502,0.0003297,2]
[419203247,1775017886641,-541.25,0.00032999,120]
[419203248,1775017886652,-541.25,0.00032999,120]
[419203249,1775017886662,-541.25,0.00032999,120]
[419203250,1775017886674,-541.25,0.00032999,120]
[419203251,1775017886683,-541.38,0.00032999,120]
[419203252,1775017886692,-500.0,0.00032999,120]
[419203253,1775017886702,-500.0,0.00032999,120]
[419203254,1775017886712,-620.22257606,0.00032999,120]
[419203255,1775017886723,-151.0,0.00032999,7]
[419203256,1775017886732,-398.289537,0.00032999,7]
[419203257,1775017886741,-151.0,0.00032999,7]
[419203258,1775017886751,-422.676841,0.00032999,7]
[419203259,1775017886761,-398.289537,0.00032999,7]
[419203260,1775017886772,-973.11877,0.00032999,7]
[419203261,1775017886782,-151.0,0.00032999,7]
[419203262,1775017886791,-422.676841,0.00032999,7]
[419203263,1775017886802,-9593.265937,0.00032999,2]
[419203264,1775017886813,-398.289537,0.00032999,7]
[419203265,1775017886823,-973.11877,0.00032999,7]
[419203266,1775017886833,-422.676841,0.00032999,7]
[419203267,1775017886844,-360.289137,0.00032999,7]
[419203268,1775017886854,-9593.265937,0.00032999,2]
[419203269,1775017886864,-2603.079491,0.00032999,7]
[419203270,1775017886874,-1331.064899,0.00032999,7]
[419203271,1775017886883,-973.11877,0.00032999,7]
[419203272,1775017886893,-398.289531,0.00032999,7]
[419203273,1775017886904,-9593.265937,0.00032999,2]
[419203274,1775017886914,-422.676833,0.00032999,7]
[419203275,1775017886924,-360.289137,0.00032999,7]
[419203276,1775017886937,-1331.064899,0.00032999,7]
[419203277,1775017886947,-2603.079491,0.00032999,7]
[419203278,1775017886958,-973.118769,0.00032999,7]
[419203279,1775017886970,-9593.26594,0.00032999,2]
[419203280,1775017886981,-360.289137,0.00032999,7]
[419203281,1775017886990,-1331.064899,0.00032999,7]
[419203282,1775017887001,-189.990753,0.00032999,7]
[419203283,1775017887011,-2603.079491,0.00032999,7]
[419203284,1775017887021,-151.0,0.00032999,7]
[419203285,1775017887032,-173.137483,0.00032999,7]
[419203286,1775017887042,-360.28914,0.00032999,7]
[419203287,1775017887052,-1331.064904,0.00032999,7]
[419203288,1775017887062,-2603.0795,0.00032999,7]
[419203289,1775017887072,-189.990753,0.00032999,7]
[419203290,1775017887082,-151.0,0.00032999,7]
[419203291,1775017887092,-151.0,0.00032999,7]
[419203292,1775017887101,-173.137483,0.00032999,7]
[419203293,1775017887111,-342.986034,0.00032999,7]
[419203294,1775017887120,-189.990753,0.00032999,7]
[419203295,1775017887129,-173.137483,0.00032999,7]
[419203296,1775017887138,-342.986034,0.00032999,7]
[419203297,1775017887148,-289.862398,0.00032999,7]
[419203298,1775017887157,-189.990762,0.00032999,7]
[419203299,1775017887166,-151.0,0.00032999,2]
[419203300,1775017887175,-2425.250221,0.00032999,7]
[419203301,1775017887185,-795.07293,0.00032999,7]
[419203302,1775017887195,-173.137475,0.00032999,7]
[419203303,1775017887204,-151.0,0.00032999,7]
[419203304,1775017887213,-342.986034,0.00032999,7]
[419203305,1775017887222,-2425.250221,0.00032999,7]
[419203306,1775017887231,-289.862398,0.00032999,7]
[419203307,1775017887241,-795.07293,0.00032999,7]
[419203308,1775017887251,-342.986028,0.00032999,7]
[419203309,1775017887260,-151.0,0.00032999,7]
[419203310,1775017887270,-2425.250221,0.00032999,7]
[419203311,1775017887280,-289.862398,0.00032999,7]